bitfinex/quotes_BTCUSD_20250109
["timestamp","ask_amount","ask_price","bid_price","bid_amount"]
[1736446149511,0.0011706,92650.0,92649.0,0.10429976]
[1736446149994,0.0011706,92650.0,92649.0,0.10537893]
[1736446150640,0.0011706,92650.0,92649.0,0.09637891]
[1736446150852,0.0001706,92650.0,92649.0,0.1491912]
[1736446151059,0.0001706,92650.0,92649.0,0.09637891]
[1736446151060,0.0011706,92650.0,92649.0,0.09637891]
[1736446151495,0.0001706,92650.0,92649.0,0.09637891]
[1736446151704,0.0011706,92650.0,92649.0,0.09637891]
[1736446151909,0.0011706,92650.0,92649.0,0.09737891]
[1736446152782,0.0011706,92650.0,92649.0,0.001]
[1736446153202,0.0011706,92650.0,92649.0,0.10529976]
[1736446153413,0.0011706,92650.0,92649.0,0.10537886]
[1736446153852,0.0001706,92650.0,92649.0,0.10537886]
[1736446154281,0.0011706,92650.0,92649.0,0.10537886]
[1736446154700,0.0001706,92650.0,92649.0,0.10537886]
[1736446154920,0.0001706,92650.0,92649.0,0.001]
[1736446155177,0.0011706,92650.0,92649.0,0.001]
[1736446155398,0.0111732,92650.0,92631.0,0.21591]
[1736446155605,0.0111732,92650.0,92595.0,0.0756]
[1736446155606,0.09885537,92638.0,92595.0,0.0756]
[1736446155810,0.31475837,92634.0,92616.0,0.10429976]
[1736446156016,0.09885537,92632.0,92612.0,0.215954]
[1736446156225,0.09885537,92632.0,92613.0,0.10429976]
[1736446156433,0.03147584,92631.0,92613.0,0.10429976]
[1736446156859,0.09885537,92642.0,92614.0,0.00107958]
[1736446157064,0.09885537,92644.0,92630.0,0.215912]
[1736446157272,0.09885537,92644.0,92628.0,0.215917]
[1736446157479,0.09885537,92649.0,92629.0,0.10429976]
[1736446157690,0.09885537,92649.0,92632.0,0.215906]
[1736446157691,0.13144483,92649.0,92632.0,0.215906]
[1736446157917,0.0001706,92650.0,92637.0,0.215894]
[1736446158122,0.0001706,92650.0,92645.0,0.215876]
[1736446158329,0.0001706,92650.0,92633.0,0.00928]
[1736446158330,0.0001706,92650.0,92647.0,0.215873]
[1736446158536,0.0001706,92650.0,92648.0,0.10537893]
[1736446158967,0.0001706,92650.0,92649.0,0.215868]
[1736446159176,0.0061706,92650.0,92649.0,0.32016776]
[1736446159386,0.0061706,92650.0,92649.0,0.34316776]
[1736446159602,0.0051706,92650.0,92649.0,0.34316776]
[1736446159814,0.0797,92688.0,92651.0,0.00114463]
[1736446160019,0.11913164,92688.0,92676.0,0.215805]
[1736446160270,0.0797,92688.0,92674.0,0.215809]
[1736446160705,0.0797,92688.0,92665.0,0.00928]
[1736446160706,0.09885537,92695.0,92675.0,0.10429976]
[1736446160921,0.0001706,92688.0,92687.0,0.215779]
[1736446161131,0.0001706,92688.0,92687.0,0.32007876]
[1736446161566,0.0001706,92688.0,92687.0,0.39666494]
[1736446161792,0.0001706,92688.0,92687.0,0.39780957]
[1736446162011,6e-07,92695.0,92694.0,0.238763]
[1736446162220,0.09885537,92730.0,92704.0,0.21574]
[1736446162428,0.09885537,92730.0,92704.0,0.34161376]
[1736446162642,0.0787,92733.0,92704.0,0.32003976]
[1736446162883,0.17755537,92733.0,92704.0,0.32003976]
[1736446163309,0.0787,92733.0,92704.0,0.10429976]
[1736446163522,0.2158208,92743.0,92720.0,0.26603604]
[1736446163523,0.0001708,92743.0,92720.0,0.26603604]
[1736446163734,0.0001708,92743.0,92726.0,0.215687]
[1736446163963,0.0001708,92743.0,92728.0,0.215684]
[1736446164174,0.0001708,92743.0,92728.0,0.31998376]
[1736446164610,0.0001708,92743.0,92732.0,0.215673]
[1736446164787,0.0001708,92743.0,92732.0,0.10429976]
[1736446166047,0.0001708,92743.0,92733.0,0.215672]
[1736446166256,0.0001708,92743.0,92737.0,0.215661]
[1736446166463,0.0001708,92743.0,92738.0,0.10537791]
[1736446166693,0.0001708,92743.0,92738.0,0.10429976]
[1736446167148,0.09885537,92736.0,92712.0,0.215719]
[1736446167352,0.09885537,92725.0,92713.0,0.00916]
[1736446167562,0.09885537,92725.0,92695.0,0.06897778]
[1736446167563,0.0787,92733.0,92728.0,0.215683]
[1736446167766,0.09885537,92737.0,92710.0,0.00916]
[1736446167973,0.0001708,92743.0,92711.0,0.1053781]
[1736446168197,0.0001708,92743.0,92730.0,0.215679]
[1736446168384,0.0001708,92743.0,92731.0,0.10429976]
[1736446169127,0.0001708,92743.0,92738.0,0.001]
[1736446169552,0.0001708,92743.0,92732.0,0.215675]
[1736446169758,0.0001708,92743.0,92732.0,0.31997476]
[1736446170584,0.0001708,92743.0,92732.0,0.31097474]
[1736446170806,0.0001708,92743.0,92731.0,0.001]
[1736446171661,0.09885537,92732.0,92731.0,0.001]
[1736446171866,0.0801,92719.0,92696.0,0.00107853]
[1736446172099,0.0801,92719.0,92706.0,0.215734]
[1736446172515,0.0801,92719.0,92698.0,0.00916]
[1736446172739,0.09799554,92719.0,92699.0,0.10429976]
[1736446172955,0.09885537,92711.0,92675.0,0.01350947]
[1736446173174,0.09885537,92707.0,92688.0,0.215776]
[1736446173388,0.09885537,92707.0,92676.0,0.33034345]
[1736446173389,0.09885537,92702.0,92696.0,0.001]
[1736446173612,0.215709,92718.0,92696.0,0.001]
[1736446173613,0.09885537,92704.0,92696.0,0.001]
[1736446173832,0.09885537,92704.0,92698.0,0.002]
[1736446174037,0.215709,92718.0,92707.0,0.215732]
[1736446174038,0.09885537,92718.0,92707.0,0.215732]
[1736446174238,0.0801,92719.0,92708.0,0.10537827]
[1736446174447,0.0801,92719.0,92708.0,0.10429976]
[1736446174653,0.09885537,92728.0,92709.0,0.00107851]
[1736446174861,0.09885537,92728.0,92714.0,0.215716]
[1736446175069,0.0472,92731.0,92718.0,0.215706]
[1736446175279,0.0472,92731.0,92719.0,0.10429976]
[1736446175488,0.09885537,92734.0,92720.0,0.215703]
[1736446175695,0.09885537,92734.0,92720.0,0.20670298]
[1736446176127,0.0804,92739.0,92721.0,0.31999976]
[1736446176337,0.11174245,92738.0,92722.0,0.215698]
[1736446176546,0.11174245,92738.0,92724.0,0.215693]
[1736446176763,0.11174245,92738.0,92723.0,0.10429976]
[1736446176982,0.11174245,92738.0,92724.0,0.215693]
[1736446177664,0.0804,92739.0,92729.0,0.21568]
[1736446177882,0.0804,92739.0,92729.0,0.431361]
[1736446178141,0.0804,92739.0,92726.0,0.215687]
[1736446178349,0.0804,92739.0,92726.0,0.31998676]
[1736446178758,0.0804,92739.0,92727.0,0.215686]
[1736446178964,0.0804,92739.0,92726.0,0.31998676]
[1736446178965,0.10317262,92739.0,92726.0,0.31998676]
[1736446179166,0.0804,92739.0,92729.0,0.001]
[1736446179407,0.09885537,92732.0,92729.0,0.001]
[1736446179623,0.09885537,92732.0,92687.0,0.1]
[1736446179624,0.09885537,92734.0,92721.0,0.215698]
[1736446179847,0.09885537,92738.0,92723.0,0.215695]
[1736446180086,0.17925537,92739.0,92728.0,0.215684]
[1736446180284,0.0001708,92743.0,92727.0,0.001]
[1736446180499,0.0001708,92743.0,92730.0,0.215679]
[1736446180725,0.0001708,92743.0,92731.0,0.10429976]
[1736446181393,0.0001708,92743.0,92732.0,0.215674]
[1736446182033,0.0001708,92743.0,92737.0,0.215663]
[1736446182241,0.0001708,92743.0,92741.0,0.215652]
[1736446182453,0.0001708,92743.0,92742.0,0.10537785]
[1736446182666,0.0001708,92743.0,92742.0,0.15904705]
[1736446182876,0.0001708,92743.0,92742.0,0.10537777]
[1736446183736,0.0001708,92743.0,92742.0,0.12837777]
[1736446184996,0.0001708,92743.0,92742.0,0.09507777]
[1736446185880,0.0001708,92743.0,92742.0,0.09607777]
[1736446185881,0.0011708,92743.0,92742.0,0.09607777]
[1736446186218,0.0011708,92743.0,92742.0,0.0822376]
[1736446186428,0.0021708,92743.0,92742.0,0.0912376]
[1736446186634,8e-07,92743.0,92742.0,0.21538223]
[1736446186833,0.0001704,92775.0,92758.0,0.21675863]
[1736446186834,2e-07,92759.0,92758.0,0.21675863]
[1736446187039,2e-07,92759.0,92758.0,0.41955839]
[1736446187259,0.0001704,92775.0,92774.0,0.215577]
[1736446187475,0.0001704,92775.0,92774.0,0.38370892]
[1736446188071,0.0001704,92775.0,92774.0,0.37454892]
[1736446188273,0.0001704,92775.0,92774.0,0.35203676]
[1736446188478,0.0001704,92775.0,92774.0,0.32903676]
[1736446188828,0.0001704,92775.0,92774.0,0.35203676]
[1736446189032,0.0001704,92775.0,92774.0,0.35318139]
[1736446189233,0.0001704,92775.0,92774.0,0.54161663]
[1736446189651,4e-07,92775.0,92774.0,0.54461663]
[1736446190026,0.0010004,92775.0,92774.0,0.55361663]
[1736446190227,0.078,92813.0,92797.0,0.215524]
[1736446190430,0.078,92813.0,92797.0,0.31982376]
[1736446190632,0.078,92813.0,92797.0,0.35196612]
[1736446191042,0.078,92813.0,92797.0,0.31998374]
[1736446191790,0.09885537,92808.0,92794.0,0.22469]
[1736446191941,0.0011708,92798.0,92797.0,0.007]
[1736446193027,0.0011708,92798.0,92795.0,0.023]
[1736446193028,0.0001708,92798.0,92795.0,0.023]
[1736446193473,0.0001708,92798.0,92797.0,0.006]
[1736446193680,0.0001708,92798.0,92795.0,0.023]
[1736446193889,0.0001708,92798.0,92797.0,0.025]
[1736446194107,0.0001708,92798.0,92797.0,0.13037722]
[1736446194519,0.0001708,92798.0,92797.0,0.13537722]
[1736446194952,0.0001708,92798.0,92797.0,0.13037722]
[1736446195163,0.0001708,92814.0,92798.0,0.023]
[1736446195379,0.0001708,92814.0,92811.0,0.236011]
[1736446195586,0.0001708,92814.0,92811.0,0.34031076]
[1736446195795,0.0001708,92814.0,92811.0,0.34927076]
[1736446196008,8e-07,92812.0,92811.0,0.34927076]
[1736446196236,0.0001708,92820.0,92818.0,0.1]
[1736446196444,0.0001708,92820.0,92814.0,0.00114463]
[1736446196445,0.0001708,92820.0,92819.0,0.35626418]
[1736446196655,0.0001708,92820.0,92819.0,0.35518722]
[1736446196866,0.0001708,92820.0,92819.0,0.36414722]
[1736446197299,8e-07,92820.0,92819.0,0.74629185]
[1736446197479,4e-07,92830.0,92829.0,0.21659363]
[1736446197724,1e-06,92836.0,92835.0,0.10114463]
[1736446197947,1e-06,92836.0,92835.0,0.22952112]
[1736446198159,6e-07,92843.0,92842.0,0.10114463]
[1736446198396,0.0001706,92868.0,92867.0,0.238361]
[1736446198623,0.0001706,92868.0,92867.0,0.35162076]
[1736446198828,0.0001706,92868.0,92867.0,0.40832014]
[1736446199461,0.0001706,92868.0,92867.0,0.34266076]
[1736446199637,0.0001706,92868.0,92867.0,0.12729976]
[1736446199851,0.08436717,92882.0,92868.0,0.238359]
[1736446200049,0.08436717,92882.0,92870.0,0.023]
[1736446200263,0.08436717,92882.0,92860.0,0.215375]
[1736446200264,0.08436717,92873.0,92864.0,0.215366]
[1736446200490,0.001,92868.0,92867.0,0.036]
[1736446200642,0.0142433,92891.0,92868.0,0.023]
[1736446200912,0.0142433,92891.0,92881.0,0.023]
[1736446201089,0.0142433,92891.0,92881.0,0.12729976]
[1736446201292,0.0142433,92891.0,92881.0,0.10429976]
[1736446201495,0.08436717,92882.0,92871.0,0.224311]
[1736446201843,0.08436717,92889.0,92872.0,0.10429976]
[1736446202048,0.0142433,92891.0,92884.0,0.023]
[1736446202257,0.0142433,92891.0,92890.0,0.215308]
[1736446202502,0.0142433,92891.0,92890.0,0.34260776]
[1736446202712,0.0142433,92891.0,92890.0,0.44690752]
[1736446203338,0.00109477,92891.0,92890.0,0.46254035]
[1736446203756,7.7e-07,92894.0,92893.0,0.33093383]
[1736446203973,0.0001704,92934.0,92912.0,0.780157]
[1736446204182,0.0001704,92934.0,92912.0,0.89341676]
[1736446204389,0.0001704,92934.0,92912.0,0.93728752]
[1736446204812,0.08453757,92934.0,92912.0,0.92832752]
[1736446205018,0.08436717,92922.0,92912.0,0.66919976]
[1736446205444,0.08436717,92922.0,92912.0,0.5649]
[1736446205445,0.08436717,92918.0,92912.0,0.5649]
[1736446205649,0.08453757,92921.0,92912.0,0.5649]
[1736446205855,0.08436717,92920.0,92912.0,0.5649]
[1736446206067,0.08436717,92916.0,92912.0,0.026]
[1736446206281,0.08436717,92915.0,92912.0,0.026]
[1736446206455,7.679e-05,92913.0,92912.0,0.34255676]
[1736446206907,7.679e-05,92913.0,92912.0,0.88745676]
[1736446207130,7.679e-05,92913.0,92912.0,0.94074198]
[1736446207546,7.679e-05,92913.0,92912.0,0.94174198]
[1736446207753,7.679e-05,92913.0,92912.0,0.94074198]
[1736446208580,7.679e-05,92913.0,92912.0,0.94174198]
[1736446208789,7.679e-05,92913.0,92912.0,0.95737481]
[1736446209205,7.679e-05,92913.0,92912.0,0.94074198]
[1736446209619,7.679e-05,92913.0,92912.0,0.96270198]
[1736446210029,7.679e-05,92913.0,92912.0,0.95870198]
[1736446210236,7.679e-05,92913.0,92912.0,0.32855676]
[1736446210651,7.679e-05,92913.0,92912.0,0.31955676]
[1736446211044,7.679e-05,92913.0,92912.0,0.35155676]
[1736446211248,7.679e-05,92913.0,92912.0,0.009]
[1736446211482,7.679e-05,92913.0,92912.0,0.013]
[1736446211898,7.679e-05,92913.0,92912.0,0.18572911]
[1736446212107,7.679e-05,92913.0,92912.0,0.18172911]
[1736446212330,7.679e-05,92913.0,92912.0,0.71662911]
[1736446212548,7.679e-05,92913.0,92912.0,0.71555296]
[1736446212765,7.679e-05,92913.0,92912.0,0.72255296]
[1736446212982,7.679e-05,92913.0,92912.0,0.71355296]
[1736446213187,7.679e-05,92913.0,92912.0,0.71455296]
[1736446213395,7.679e-05,92913.0,92912.0,0.72355296]
[1736446213609,7.679e-05,92913.0,92912.0,0.71455296]
[1736446214024,7.679e-05,92913.0,92912.0,0.72355296]
[1736446214435,7.679e-05,92913.0,92912.0,0.18065296]
[1736446214642,7.679e-05,92913.0,92912.0,0.17272895]
[1736446215066,7.679e-05,92913.0,92912.0,0.81462895]
[1736446215273,0.0001704,92921.0,92920.0,0.215238]
[1736446215485,0.0001704,92921.0,92920.0,0.98873752]
[1736446216536,0.315079,92989.0,92922.0,0.430468]
[1736446216756,0.215111,92976.0,92949.0,0.215169]
[1736446216977,0.215134,92966.0,92952.0,0.023]
[1736446217223,0.215155,92957.0,92944.0,0.00896]
[1736446217459,0.10429976,92965.0,92944.0,0.00896]
[1736446217666,0.0142429,92984.0,92945.0,0.10429976]
[1736446217870,0.30931571,92980.0,92945.0,0.10429976]
[1736446218072,0.215117,92973.0,92952.0,0.023]
[1736446218288,0.216134,92966.0,92952.0,0.024]
[1736446218511,0.10429976,92965.0,92952.0,0.001]
[1736446218736,0.430315,92955.0,92952.0,0.001]
[1736446218951,0.15229976,92954.0,92922.0,0.224192]
[1736446219161,0.215188,92942.0,92923.0,0.10429976]
[1736446219383,0.15229976,92954.0,92917.0,0.215245]
[1736446219601,0.296011,92932.0,92918.0,0.11325976]
[1736446219809,0.048,92931.0,92879.0,0.1824]
[1736446220019,0.048,92931.0,92886.0,0.1]
[1736446220020,0.215218,92929.0,92886.0,0.1]
[1736446220233,0.215241,92920.0,92895.0,0.215294]
[1736446220448,0.10429976,92928.0,92896.0,0.10429976]
[1736446220671,0.10429976,92928.0,92889.0,0.00896]
[1736446220911,0.30931571,92920.0,92889.0,0.00896]
[1736446221124,0.215281,92902.0,92889.0,0.00896]
[1736446221365,0.215281,92902.0,92890.0,0.023]
[1736446221579,0.1245,92918.0,92889.0,0.00896]
[1736446221790,0.10429976,92917.0,92881.0,0.224287]
[1736446222002,0.215286,92900.0,92885.0,0.215319]
[1736446222227,0.215271,92906.0,92882.0,0.10429976]
[1736446222444,0.430543,92906.0,92889.0,0.023]
[1736446222687,0.215281,92902.0,92890.0,0.0453634]
[1736446222903,0.215245,92917.0,92891.0,0.023]
[1736446223120,0.215255,92913.0,92897.0,0.215292]
[1736446223328,0.003,92900.0,92890.0,0.215308]
[1736446223796,0.003,92900.0,92893.0,0.023]
[1736446224007,0.003,92900.0,92895.0,0.023]
[1736446224221,0.003,92900.0,92897.0,0.023]
[1736446224431,0.003,92900.0,92897.0,0.12729976]
[1736446224642,0.1245,92918.0,92906.0,0.21527]
[1736446224863,0.001,92917.0,92906.0,0.21527]
[1736446225074,0.431492,92917.0,92903.0,0.023]
[1736446225288,0.431492,92917.0,92897.0,0.10429976]
[1736446225289,0.215255,92913.0,92898.0,0.238289]
[1736446225498,0.10429976,92913.0,92896.0,0.009]
[1736446225706,0.21528,92903.0,92897.0,0.002]
[1736446226351,0.10429976,92903.0,92825.0,8.5e-05]
[1736446226564,0.10429976,92902.0,92873.0,0.21642259]
[1736446226769,0.10429976,92902.0,92873.0,0.215346]
[1736446226976,0.2153,92894.0,92877.0,0.215337]
[1736446227155,0.215287,92899.0,92887.0,0.023]
[1736446227369,0.215297,92895.0,92887.0,0.023]
[1736446227580,0.001,92917.0,92869.0,0.215355]
[1736446227581,0.001,92903.0,92876.0,0.009]
[1736446227793,0.215312,92889.0,92877.0,0.215338]
[1736446228208,0.215304,92892.0,92877.0,0.215338]
[1736446228409,0.001,92894.0,92878.0,0.00107663]
[1736446228709,0.430571,92900.0,92885.0,0.215319]
[1736446228852,0.215294,92897.0,92885.0,0.215319]
[1736446229483,0.001,92889.0,92878.0,0.215336]
[1736446229701,0.001,92889.0,92879.0,0.023]
[1736446229975,0.001,92889.0,92873.0,0.215347]
[1736446229976,0.0785,92887.0,92876.0,0.001]
[1736446230183,0.215317,92886.0,92876.0,0.001]
[1736446230389,0.215317,92886.0,92865.0,0.215365]
[1736446230390,0.0785,92887.0,92869.0,0.215356]
[1736446230592,0.215322,92884.0,92869.0,0.430712]
[1736446230911,0.215322,92884.0,92870.0,0.023]
[1736446231111,0.0785,92887.0,92865.0,0.215365]
[1736446231112,0.215331,92880.0,92865.0,0.215365]
[1736446231364,0.215331,92880.0,92864.0,0.215368]
[1736446231365,0.215331,92880.0,92868.0,0.023]
[1736446231577,0.216317,92886.0,92848.0,0.215404]
[1736446231578,0.0451,92878.0,92848.0,0.215404]
[1736446231724,0.10429976,92877.0,92848.0,0.31970376]
[1736446231926,0.10429976,92877.0,92849.0,0.215403]
[1736446231927,0.215367,92865.0,92849.0,0.215403]
[1736446232131,0.215377,92861.0,92838.0,0.215429]
[1736446232380,0.2584514,92861.0,92847.0,0.215406]
[1736446232736,0.2584514,92861.0,92837.0,8.5e-05]
[1736446232737,0.18019976,92860.0,92837.0,8.5e-05]
[1736446233285,0.0759,92860.0,92837.0,8.5e-05]
[1736446233496,0.21538,92859.0,92847.0,0.215406]
[1736446234164,0.215364,92866.0,92855.0,0.215389]
[1736446234388,0.001,92860.0,92837.0,8.5e-05]
[1736446234624,0.296648,92873.0,92838.0,0.10429976]
[1736446234849,0.0813,92873.0,92857.0,0.215384]
[1736446235083,0.0813,92873.0,92839.0,0.02407688]
[1736446235084,0.001,92859.0,92851.0,0.238398]
[1736446235294,0.001,92859.0,92837.0,8.5e-05]
[1736446235503,0.001,92859.0,92842.0,0.215419]
[1736446235723,0.001,92859.0,92842.0,0.430838]
[1736446235937,0.215385,92857.0,92842.0,0.215419]
[1736446236143,0.215395,92853.0,92839.0,0.215426]
[1736446236405,0.215378,92860.0,92841.0,0.023]
[1736446236406,0.002,92860.0,92841.0,0.023]
[1736446236618,0.003,92860.0,92843.0,0.023]
[1736446236850,0.002,92860.0,92855.0,0.215387]
[1736446237289,0.001,92857.0,92855.0,0.215387]
[1736446237515,0.215362,92867.0,92855.0,0.215387]
[1736446237737,0.215372,92863.0,92853.0,0.023]
[1736446237867,0.001,92857.0,92853.0,0.023]
[1736446238076,0.215387,92856.0,92842.0,0.224418]
[1736446238282,0.215387,92856.0,92842.0,0.215418]
[1736446238715,0.215387,92856.0,92843.0,0.023]
[1736446238941,0.215398,92852.0,92838.0,0.215428]
[1736446239141,0.215391,92855.0,92834.0,0.023]
[1736446240190,0.0451,92878.0,92834.0,0.023]
[1736446240191,0.296648,92873.0,92844.0,0.023]
[1736446240465,0.215366,92866.0,92853.0,0.215391]
[1736446240702,0.215366,92866.0,92853.0,0.20639098]
[1736446240948,0.215366,92866.0,92850.0,0.2154]
[1736446240949,0.001,92855.0,92852.0,0.215396]
[1736446241201,0.215366,92866.0,92852.0,0.215396]
[1736446241683,0.215366,92865.0,92852.0,0.215396]
[1736446243330,0.218366,92866.0,92852.0,0.215396]
[1736446243331,0.002,92866.0,92853.0,0.023]
[1736446243749,0.001,92865.0,92856.0,0.215387]
[1736446243959,0.216367,92865.0,92855.0,0.023]
[1736446244177,0.215391,92855.0,92841.0,0.215419]
[1736446244384,0.215391,92855.0,92840.0,0.009]
[1736446244385,0.21538,92859.0,92840.0,0.009]
[1736446244598,0.1,92869.0,92840.0,0.009]
[1736446244599,0.215401,92850.0,92840.0,0.009]
[1736446244803,0.21541,92846.0,92840.0,0.009]
[1736446245231,0.215396,92852.0,92840.0,0.009]
[1736446245667,0.215375,92861.0,92847.0,0.215406]
[1736446245880,0.215363,92867.0,92841.0,0.10529976]
[1736446246086,0.215377,92861.0,92849.0,0.215402]
[1736446246531,0.215384,92858.0,92847.0,0.023]
[1736446246719,0.0216363,92865.0,92842.0,0.215419]
[1736446246720,0.21539,92855.0,92842.0,0.215419]
[1736446247092,0.215398,92851.0,92843.0,0.023]
[1736446247306,0.215378,92860.0,92844.0,0.215415]
[1736446247514,0.215382,92858.0,92845.0,0.215412]
[1736446247878,0.2370033,92865.0,92845.0,0.023]
[1736446248090,1.26837302,92880.0,92852.0,0.215396]
[1736446248289,0.001,92851.0,92847.0,0.023]
[1736446248489,0.001,92851.0,92849.0,0.023]
[1736446248686,0.215339,92877.0,92858.0,0.215381]
[1736446249095,0.003,92865.0,92849.0,0.023]
[1736446249331,0.003,92865.0,92856.0,0.215385]
[1736446249953,0.218367,92865.0,92848.0,0.023]
[1736446250189,0.218367,92865.0,92853.0,0.023]
[1736446250391,0.215367,92865.0,92853.0,0.023]
[1736446250593,0.215386,92857.0,92841.0,0.215422]
[1736446250801,0.215392,92854.0,92840.0,0.009]
[1736446251003,0.0843,92873.0,92841.0,0.10429976]
[1736446251253,0.215353,92871.0,92841.0,0.10429976]
[1736446251456,0.215377,92861.0,92849.0,0.215401]
[1736446251676,0.34820955,92860.0,92841.0,0.215422]
[1736446251848,0.217366,92865.0,92851.0,0.215398]
[1736446252050,0.002,92865.0,92861.0,0.215374]
[1736446252412,0.001,92865.0,92854.0,0.215391]
[1736446252563,0.001,92865.0,92855.0,0.023]
[1736446252772,0.215358,92869.0,92856.0,0.215387]
[1736446252980,0.215358,92869.0,92851.0,0.10429976]
[1736446252981,0.21535,92872.0,92860.0,0.215377]
[1736446253140,0.21535,92872.0,92852.0,0.023]
[1736446253141,0.2629291,92872.0,92852.0,0.023]
[1736446253500,0.20083529,92870.0,92840.0,0.009]
[1736446253709,0.20083529,92870.0,92853.0,0.215393]
[1736446253710,0.001,92861.0,92853.0,0.215393]
[1736446254331,0.001,92861.0,92841.0,0.10429976]
[1736446254332,0.001,92861.0,92847.0,0.215407]
[1736446254536,0.215411,92846.0,92837.0,8.5e-05]
[1736446254747,0.0215411,92846.0,92837.0,8.5e-05]
[1736446254953,0.215422,92841.0,92837.0,8.5e-05]
[1736446255161,0.31972176,92841.0,92837.0,8.5e-05]
[1736446255369,0.215426,92839.0,92837.0,8.5e-05]
[1736446255575,0.215426,92839.0,92813.0,0.215485]
[1736446255576,0.215429,92838.0,92817.0,0.20673108]
[1736446255784,0.21545,92829.0,92817.0,0.20673108]
[1736446256653,0.215444,92832.0,92820.0,0.215469]
[1736446257066,0.215451,92829.0,92813.0,0.215485]
[1736446257279,0.216451,92829.0,92818.0,0.215475]
[1736446257485,0.215451,92829.0,92818.0,0.215475]
[1736446258130,0.215459,92825.0,92815.0,0.215482]
[1736446258344,0.215477,92817.0,92800.0,8.5e-05]
[1736446258557,0.215477,92817.0,92806.0,0.215502]
[1736446258764,0.215472,92820.0,92809.0,0.215494]
[1736446258981,0.20083529,92830.0,92809.0,0.215494]
[1736446259435,0.215452,92828.0,92801.0,0.215514]
[1736446259619,0.215482,92816.0,92801.0,0.215514]
[1736446259872,0.215482,92816.0,92805.0,0.215503]
[1736446260080,0.215482,92816.0,92801.0,0.215514]
[1736446260315,0.215482,92816.0,92800.0,8.5e-05]
[1736446260543,0.215482,92816.0,92815.0,0.001]
[1736446260768,0.21553,92795.0,92783.0,0.215555]
[1736446260982,1.06753773,92809.0,92778.0,0.00126018]
[1736446261233,0.05602234,92808.0,92795.0,0.215528]
[1736446261495,0.10429976,92816.0,92780.0,0.023]
[1736446261496,0.215488,92813.0,92780.0,0.023]
[1736446261745,0.215485,92814.0,92787.0,0.023]
[1736446261993,0.215497,92809.0,92797.0,0.215522]
[1736446262721,0.001,92816.0,92794.0,0.21553]
[1736446262722,0.215482,92815.0,92801.0,0.215514]
[1736446262930,0.215487,92813.0,92801.0,0.215514]
[1736446263171,0.047815,92814.0,92792.0,0.023]
[1736446263172,0.215497,92809.0,92792.0,0.023]
[1736446263416,0.215497,92809.0,92792.0,0.12729976]
[1736446263682,0.002,92809.0,92799.0,0.215519]
[1736446263946,0.002,92809.0,92795.0,0.215528]
[1736446263947,0.002,92809.0,92803.0,0.215509]
[1736446264218,0.047815,92814.0,92803.0,0.215509]
[1736446264484,0.047815,92814.0,92786.0,0.00892]
[1736446264485,0.21556,92782.0,92772.0,8.5e-05]
[1736446264749,0.215568,92778.0,92772.0,8.5e-05]
[1736446264998,0.22889976,92777.0,92772.0,8.5e-05]
[1736446265214,0.42889976,92777.0,92772.0,8.5e-05]
[1736446265431,0.33319952,92777.0,92772.0,8.5e-05]
[1736446265642,0.215586,92770.0,92754.0,8.5e-05]
[1736446265869,0.215588,92770.0,92754.0,8.5e-05]
[1736446266111,0.1246,92777.0,92754.0,8.5e-05]
[1736446266352,0.215583,92772.0,92757.0,0.215615]
[1736446266842,0.215592,92768.0,92757.0,0.215615]
[1736446267515,0.215592,92768.0,92754.0,8.5e-05]
[1736446267730,0.431185,92768.0,92754.0,8.5e-05]
[1736446267963,0.215592,92768.0,92754.0,8.5e-05]
[1736446268432,0.20083529,92770.0,92756.0,0.215617]
[1736446268634,0.001,92768.0,92756.0,0.215617]
[1736446268844,0.215593,92767.0,92756.0,0.215617]
[1736446269484,0.215604,92763.0,92754.0,8.5e-05]
[1736446271113,0.215608,92761.0,92750.0,0.215633]
[1736446271325,0.2587285,92761.0,92749.0,0.215635]
[1736446271787,0.215597,92766.0,92748.0,0.023]
[1736446272036,0.001,92768.0,92751.0,0.0996]
[1736446272299,0.001,92768.0,92753.0,0.023]
[1736446272509,0.001,92768.0,92763.0,0.215602]
[1736446272936,0.001,92768.0,92760.0,0.023]
[1736446273158,0.215568,92779.0,92760.0,0.023]
[1736446273373,0.215568,92779.0,92630.0,0.75826406]
[1736446273374,0.20083529,92770.0,92753.0,0.215626]
[1736446273593,0.1488,92792.0,92754.0,0.10429976]
[1736446273594,0.002,92768.0,92754.0,0.10429976]
[1736446273809,0.002,92768.0,92755.0,0.023]
[1736446273992,0.20083529,92800.0,92761.0,0.64619976]
[1736446274234,0.045,92807.0,92772.0,0.215582]
[1736446274441,0.002,92779.0,92775.0,0.023]
[1736446274655,0.002,92779.0,92778.0,0.215568]
[1736446274897,0.2155,92808.0,92794.0,0.215529]
[1736446275112,0.215508,92804.0,92779.0,0.023]
[1736446275337,0.003,92800.0,92778.0,0.00107763]
[1736446275556,0.003,92800.0,92745.0,0.42510385]
[1736446275557,0.215603,92764.0,92745.0,0.42510385]
[1736446275789,0.215606,92762.0,92745.0,0.52040359]
[1736446276395,1.06753773,92777.0,92730.0,0.0812]
[1736446276635,0.0484,92768.0,92731.0,0.11321976]
[1736446276846,0.10429976,92767.0,92732.0,0.08874398]
[1736446277111,0.215596,92766.0,92734.0,0.21567]
[1736446277324,0.215596,92766.0,92733.0,0.10429976]
[1736446277325,0.2156,92764.0,92739.0,0.215656]
[1736446277533,0.215628,92753.0,92742.0,0.215649]
[1736446278034,0.215628,92753.0,92741.0,0.215654]
[1736446278874,0.0431246,92752.0,92741.0,0.215654]
[1736446279076,0.0431246,92752.0,92741.0,0.431308]
[1736446279417,0.001,92753.0,92745.0,0.215644]
[1736446279630,0.001,92753.0,92741.0,0.215654]
[1736446279631,0.216627,92753.0,92741.0,0.215654]
[1736446279834,0.216627,92753.0,92740.0,0.023]
[1736446279835,0.001,92753.0,92740.0,0.023]
[1736446280053,0.001,92753.0,92745.0,0.215642]
[1736446280498,0.0432231,92752.0,92733.0,0.215671]